fUST/lending_fUST_20250314
["ID","MTS","AMOUNT","RATE_DAILY","PERIOD"]
[356097302,1741895463498,-500.0,0.00015342,2]
[356097303,1741895463510,-500.0,0.00015342,2]
[356097304,1741895463521,-1032.23,0.00015342,2]
[356097305,1741895463531,-615.29,0.00015342,2]
[356097306,1741895463542,-919.78,0.00015342,2]
[356097307,1741895463553,-567.13,0.00015342,2]
[356097308,1741895463563,-500.0,0.00015342,2]
[356097309,1741895463574,-504.76,0.00015342,2]
[356097310,1741895463584,-1477.97,0.00015342,2]
[356097311,1741895463595,-814.92,0.00015342,2]
[356097312,1741895463606,-500.0,0.00015342,2]
[356097313,1741895463617,-716.89,0.00015342,2]
[356097314,1741895463627,-2435.2,0.00015342,2]
[356097315,1741895463637,-1122.89,0.00015342,2]
[356097316,1741895463648,-500.0,0.00015342,2]
[356097317,1741895463661,-881.46,0.00015342,2]
[356097318,1741895463672,-815.2,0.00015342,2]
[356097319,1741895463685,-500.0,0.00015342,2]
[356097320,1741895463696,-500.0,0.00015342,2]
[356097321,1741895463706,-500.0,0.00015342,2]
[356097322,1741895463717,-985.12,0.00015342,2]
[356097323,1741895463730,-500.0,0.00015342,2]
[356097324,1741895463741,-500.0,0.00015342,2]
[356097325,1741895463751,-977.86,0.00015342,2]
[356097326,1741895463763,-604.51,0.00015342,2]
[356097327,1741895463774,-797.13,0.00015342,2]
[356097328,1741895463784,-500.0,0.00015342,2]
[356097329,1741895463795,-500.0,0.00015342,2]
[356097330,1741895463806,-900.08,0.00015342,2]
[356097331,1741895463816,-500.0,0.00015342,2]
[356097332,1741895463827,-1033.41,0.00015342,2]
[356097333,1741895463838,-987.13,0.00015342,2]
[356097334,1741895463849,-500.0,0.00015342,2]
[356097335,1741895463861,-500.0,0.00015342,2]
[356097336,1741895463872,-1031.99,0.00015342,2]
[356097337,1741895463883,-574.29,0.00015342,2]
[356097338,1741895463894,-500.0,0.00015342,2]
[356097339,1741895463907,-500.0,0.00015342,2]
[356097340,1741895463919,-385.94186567,0.00015342,2]
[356097341,1741895463930,-551.04,0.00015342,2]
[356097342,1741895463940,-500.0,0.00015342,2]
[356097343,1741895463952,-1471.9,0.00015342,2]
[356097344,1741895463962,-500.0,0.00015342,2]
[356097345,1741895463973,-505.09,0.00015342,2]
[356097346,1741895463984,-500.0,0.00015342,2]
[356097347,1741895463994,-1118.78,0.00015342,2]
[356097348,1741895464006,-500.0,0.00015342,2]
[356097349,1741895464018,-500.0,0.00015342,2]
[356097350,1741895464028,-500.0,0.00015342,2]
[356097351,1741895464039,-500.0,0.00015342,2]
[356097352,1741895464049,-1105.79,0.00015342,2]
[356097353,1741895464060,-527.28,0.00015342,2]
[356097354,1741895464071,-698.96,0.00015342,2]
[356097355,1741895464081,-500.0,0.00015342,2]
[356097356,1741895464091,-500.0,0.00015342,2]
[356097357,1741895464102,-500.0,0.00015342,2]
[356097358,1741895464114,-500.0,0.00015342,2]
[356097359,1741895464125,-2274.07,0.00015342,2]
[356097360,1741895464136,-1049.97,0.00015342,2]
[356097361,1741895464146,-1181.55,0.00015342,2]
[356097362,1741895464158,-1004.4,0.00015342,2]
[356097363,1741895464168,-1924.06,0.00015342,2]
[356097364,1741895464179,-1127.21,0.00015342,2]
[356097365,1741895464190,-1448.48,0.00015342,2]
[356097366,1741895464201,-500.0,0.00015342,2]
[356097367,1741895464212,-1754.72,0.00015342,2]
[356097368,1741895464223,-500.0,0.00015342,2]
[356097369,1741895464234,-677.35,0.00015342,2]
[356097370,1741895464245,-500.0,0.00015342,2]
[356097371,1741895464256,-500.0,0.00015342,2]
[356097372,1741895464266,-2165.89,0.00015342,2]
[356097373,1741895464277,-1059.57,0.00015342,2]
[356097374,1741895464289,-500.0,0.00015342,2]
[356097375,1741895464301,-500.0,0.00015342,2]
[356097376,1741895464312,-500.0,0.00015342,2]
[356097377,1741895464323,-500.0,0.00015342,2]
[356097378,1741895464333,-2402.59,0.00015342,2]
[356097379,1741895464343,-500.0,0.00015342,2]
[356097380,1741895464353,-500.0,0.00015342,2]
[356097381,1741895464364,-582.96,0.00015342,2]
[356097382,1741895464374,-500.0,0.00015342,2]
[356097383,1741895464385,-500.0,0.00015342,2]
[356097384,1741895464395,-549.76171085,0.00015342,2]
[356097385,1741895464406,-500.0,0.00015342,2]
[356097386,1741895464416,-1430.69,0.00015342,2]
[356097387,1741895464427,-500.0,0.00015342,2]
[356097388,1741895464439,-500.0,0.00015342,2]
[356097389,1741895464450,-500.0,0.00015342,2]
[356097390,1741895464460,-740.21,0.00015342,2]
[356097391,1741895464471,-573.0,0.00015342,2]
[356097392,1741895464481,-987.01,0.00015342,2]
[356097393,1741895464491,-500.0,0.00015342,2]
[356097394,1741895464501,-15058.52,0.00015342,2]
[356097395,1741895464511,-500.0,0.00015342,2]
[356097396,1741895464521,-500.0,0.00015342,2]
[356097397,1741895464532,-744.73,0.00015342,2]
[356097398,1741895464543,-500.0,0.00015342,2]
[356097399,1741895464553,-279.3886055,0.00015342,2]
[356097400,1741895464564,-1830.51,0.00015342,2]
[356097401,1741895464575,-500.0,0.00015342,2]
[356097402,1741895464585,-632.64,0.00015342,2]
[356097403,1741895464596,-11604.78,0.00015342,2]
[356097404,1741895464606,-500.0,0.00015342,2]
[356097405,1741895464617,-1332.45,0.00015342,2]
[356097406,1741895464627,-1636.96,0.00015342,2]
[356097407,1741895464637,-500.0,0.00015342,2]
[356097408,1741895464648,-4554.61,0.00015342,2]
[356097409,1741895464659,-500.0,0.00015342,2]
[356097410,1741895464669,-6214.93,0.00015342,2]
[356097411,1741895464683,-500.0,0.00015342,2]
[356097412,1741895464693,-864.97,0.00015342,2]
[356097413,1741895464704,-500.0,0.00015342,2]
[356097414,1741895464714,-1420.88,0.00015342,2]
[356097415,1741895464726,-2190.28,0.00015342,2]
[356097416,1741895464736,-2950.76,0.00015342,2]
[356097417,1741895464747,-3526.3,0.00015342,2]
[356097418,1741895464758,-500.0,0.00015342,2]
[356097419,1741895464768,-203820.5484127,0.00015342,2]
[356097420,1741895465666,-163.06759572,0.00013698,2]
[356097421,1741895465685,-218.01292992,0.00013698,2]
[356097422,1741895465703,-281.98707008,0.00013698,2]
[356097423,1741895465714,-321.25184948,0.00013972,2]
[356097424,1741895466291,-500.0,0.00013698,2]
[356097425,1741895466303,-500.0,0.00013698,2]
[356097426,1741895466314,-500.0,0.00013698,2]
[356097427,1741895466324,-500.0,0.00013698,2]
[356097428,1741895466336,-178.74815052,0.00013972,2]
[356097429,1741895466347,-320.52684948,0.00013972,2]
[356097430,1741895466368,-500.0,0.00013698,2]
[356097431,1741895466378,-179.47315052,0.00013972,2]
[356097432,1741895466389,-500.0,0.00013972,2]
[356097433,1741895466399,-500.0,0.00013972,2]
[356097434,1741895466413,-2303.85,0.00014246,2]
[356097435,1741895466423,-247.02028132,0.00014246,2]
[356097436,1741895466434,-443.28866262,0.00014246,2]
[356097437,1741895466448,-176.15133738,0.00014246,2]
[356097438,1741895466459,-500.0,0.00014246,2]
[356097439,1741895466469,-2303.85,0.0001452,2]
[356097440,1741895466480,-500.0,0.0001452,2]
[356097441,1741895466491,-2303.85,0.00014794,2]
[356097442,1741895466502,-2303.85,0.00015068,2]
[356097443,1741895466512,-1322.91550965,0.00015342,2]
[356097444,1741895466762,-500.0,0.00013698,2]
[356097445,1741895466772,-133.60000015,0.00013698,2]
[356097446,1741895466867,-366.39999985,0.00013698,2]
[356097447,1741895466877,-500.0,0.00013698,2]
[356097448,1741895466887,-500.0,0.00013698,2]
[356097449,1741895466897,-500.0,0.00013698,2]
[356097450,1741895466909,-500.0,0.00013972,2]
[356097451,1741895466919,-500.0,0.00013972,2]
[356097452,1741895466929,-500.0,0.00013972,2]
[356097453,1741895466939,-500.0,0.00013972,2]
[356097454,1741895466949,-500.0,0.00014246,2]
[356097455,1741895466958,-500.0,0.0001452,2]
[356097456,1741895466968,-287.03,0.00014794,2]
[356097457,1741895466978,-4618.46000015,0.00015342,2]
[356097458,1741895466994,-627.0760775,0.00015342,2]
[356097459,1741895467005,-2632.72,0.00015342,2]
[356097460,1741895467015,-1162.99,0.00015342,2]
[356097461,1741895467025,-500.0,0.00015342,2]
[356097462,1741895467035,-3048.5,0.00015342,2]
[356097463,1741895467045,-1963.71,0.00015342,2]
[356097464,1741895467055,-2357.94,0.00015342,2]
[356097465,1741895467065,-500.0,0.00015342,2]
[356097466,1741895467074,-2519.23,0.00015342,2]
[356097467,1741895467084,-4374.59,0.00015342,2]
[356097468,1741895467093,-618.04,0.00015342,2]
[356097469,1741895467103,-899.38,0.00015342,2]
[356097470,1741895467114,-500.0,0.00015342,2]
[356097471,1741895467124,-509.88620804,0.00015342,2]
[356097472,1741895467135,-1679.95,0.00015342,2]
[356097473,1741895467144,-500.0,0.00015342,2]
[356097474,1741895467157,-500.0,0.00015342,2]
[356097475,1741895467167,-500.0,0.00015342,2]
[356097476,1741895467176,-500.0,0.00015342,2]
[356097477,1741895467186,-1770.04,0.00015342,2]
[356097478,1741895467196,-913.15,0.00015342,2]
[356097479,1741895467206,-326.49444465,0.00015342,2]
[356097480,1741895467216,-744.61,0.00015342,2]
[356097481,1741895467227,-6957.26915829,0.00015342,2]
[356097482,1741895467239,-4312.15887578,0.00015342,2]
[356097485,1741896372547,6300.0,0.0001,2]
[356097546,1741896632547,-176.28017851,0.00012387,2]
[356097549,1741896632558,-5261.387349,0.00012512,2]
[356097550,1741896632567,-600.0,0.00013164,2]
[356097552,1741896632577,-300.0,0.00013353,2]
[356097554,1741896632586,-1914.0,0.00013354,2]
[356097556,1741896632595,-540.0,0.00013354,2]
[356097558,1741896632605,-241.99634962,0.000135,2]
[356097561,1741896632615,-500.0,0.00013549,2]
[356097564,1741896632624,-500.0,0.00013549,2]
[356097568,1741896632633,-275.29159054,0.00013549,2]
[356097570,1741896632642,-343.97525471,0.00013549,2]
[356097572,1741896632652,-1703.63404081,0.00013549,2]
[356097574,1741896632661,-27268.0425204,0.0001355,2]
[356097576,1741896632671,-3000.0,0.00013598,2]
[356097578,1741896632680,-56520.78136036,0.00013598,2]
[356097620,1741896638212,-399.0,0.00012994,2]
[356097622,1741896638222,-1630.99626738,0.00013498,2]
[356097623,1741896638232,-12536.70373262,0.00013598,2]
[356097626,1741896638300,-3025.80884225,0.00013598,2]
[356097627,1741896638312,-3226.07663455,0.00013598,2]
[356097628,1741896638328,-334.20000001,0.00013598,2]
[356097652,1741896641561,-4080.81724551,0.00013598,2]
[356097653,1741896641571,-300.0,0.000136,4]
[356097654,1741896641581,-500.0,0.00013673,2]
[356097655,1741896641591,-500.0,0.00013673,2]
[356097656,1741896641602,-500.0,0.00013673,2]
[356097657,1741896641612,-500.0,0.00013673,2]
[356097658,1741896641635,-500.0,0.00013673,2]
[356097659,1741896641646,-500.0,0.00013673,2]
[356097660,1741896641656,-505.17312173,0.00013673,2]
[356097661,1741896641667,-500.0,0.00013673,2]
[356097662,1741896641677,-500.0,0.00013673,2]
[356097663,1741896641687,-500.0,0.00013673,2]
[356097665,1741896641697,-500.0,0.00013673,2]
[356097667,1741896641708,-500.0,0.00013673,2]
[356097669,1741896641718,-500.0,0.00013673,2]
[356097671,1741896641728,-500.0,0.00013673,2]
[356097673,1741896641738,-500.0,0.00013673,2]
[356097675,1741896641750,-500.0,0.00013673,2]
[356097676,1741896641760,-500.0,0.00013673,2]
[356097678,1741896641770,-500.0,0.00013673,2]
[356097679,1741896641780,-500.0,0.00013673,2]
[356097681,1741896641791,-500.0,0.00013698,2]
[356097682,1741896641801,-500.0,0.00013698,2]
[356097683,1741896641811,-500.0,0.00013698,2]
[356097685,1741896641821,-500.0,0.00013698,2]
[356097686,1741896641832,-501.71171092,0.00013698,2]
[356097688,1741896641843,-500.0,0.00013698,2]
[356097690,1741896641852,-500.0,0.00013698,2]
[356097691,1741896641862,-500.0,0.00013698,2]
[356097693,1741896641873,-500.0,0.00013698,2]
[356097695,1741896641883,-519.74621214,0.00013698,2]
[356097697,1741896641893,-500.0,0.00013698,2]
[356097699,1741896641904,-500.0,0.00013698,2]
[356097701,1741896641914,-503.051278,0.00013698,2]
[356097703,1741896641925,-500.0,0.00013698,2]
[356097705,1741896641937,-500.0,0.00013698,2]
[356097707,1741896641947,-500.0,0.00013698,2]
[356097709,1741896641959,-500.0,0.00013698,2]
[356097711,1741896641969,-500.0,0.00013698,2]
[356097713,1741896641979,-500.0,0.00013698,2]
[356097715,1741896641991,-503.30451997,0.00013698,2]
[356097716,1741896642001,-500.0,0.00013698,2]
[356097718,1741896642012,-269.79085415,0.00013698,2]
[356097720,1741896642023,-500.0,0.00013698,2]
[356097722,1741896642033,-500.0,0.00013698,2]
[356097724,1741896642043,-501.8310386,0.00013698,2]
[356097726,1741896642059,-500.0,0.00013698,2]
[356097728,1741896642069,-500.0,0.00013698,2]
[356097730,1741896642079,-500.0,0.00013698,2]
[356097732,1741896642091,-500.0,0.00013698,2]
[356097733,1741896642102,-500.0,0.00013698,2]
[356097735,1741896642112,-500.0,0.00013698,2]
[356097736,1741896642123,-500.0,0.00013698,2]
[356097737,1741896642134,-500.0,0.00013698,2]
[356097738,1741896642144,-821.65,0.00013698,2]
[356097740,1741896642155,-500.0,0.00013698,2]
[356097742,1741896642165,-500.0,0.00013698,2]
[356097744,1741896642175,-500.0,0.00013698,2]
[356097746,1741896642186,-405.82856791,0.00013698,2]
[356097747,1741896642196,-500.0,0.00013698,2]
[356097748,1741896642206,-500.0,0.00013698,2]
[356097749,1741896642216,-322.32203264,0.00013698,2]
[356097750,1741896642226,-500.0,0.00013698,2]
[356097751,1741896642238,-731.16,0.00013698,2]
[356097752,1741896642248,-1181.8,0.00013698,2]
[356097753,1741896642258,-33.16315168,0.00013698,2]
[356097771,1741896644553,-466.83684832,0.00013698,2]
[356097772,1741896644563,-500.0,0.00013698,2]
[356097773,1741896644572,-500.0,0.00013698,2]
[356097774,1741896644582,-143.17665449,0.00013698,2]
[356097775,1741896644594,-349.14666355,0.00013698,2]
[356097788,1741896646417,-7.67668196,0.00013698,2]
[356097789,1741896646427,-500.0,0.00013698,2]
[356097790,1741896646437,-500.0,0.00013698,2]
[356097791,1741896646446,-795.38,0.00013698,2]
[356097792,1741896646456,-500.0,0.00013698,2]
[356097793,1741896646465,-370.69996403,0.00013698,2]
[356097794,1741896646475,-500.0,0.00013698,2]
[356097795,1741896646484,-500.0,0.00013698,2]
[356097797,1741896646494,-500.0,0.00013698,2]
[356097799,1741896646504,-500.0,0.00013698,2]
[356097800,1741896646514,-564.63,0.00013698,2]
[356097801,1741896646524,-537.42256433,0.00013698,2]
[356097802,1741896646533,-619.07206918,0.00013698,2]
[356097803,1741896646543,-500.0,0.00013698,2]
[356097805,1741896646552,-649.51,0.00013698,2]
[356097807,1741896646562,-500.0,0.00013698,2]
[356097809,1741896646571,-500.0,0.00013698,2]
[356097811,1741896646581,-765.96,0.00013698,2]
[356097812,1741896646590,-500.0,0.00013698,2]
[356097813,1741896646600,-500.0,0.00013698,2]
[356097815,1741896646609,-751.83,0.00013698,2]
[356097817,1741896646619,-534.95456523,0.00013698,2]
[356097818,1741896646628,-500.0,0.00013698,2]
[356097819,1741896646637,-500.0,0.00013698,2]
[356097821,1741896646647,-500.0,0.00013698,2]
[356097822,1741896646657,-1095.47,0.00013698,2]
[356097823,1741896646666,-500.0,0.00013698,2]
[356097824,1741896646676,-568.63091671,0.00013698,2]
[356097825,1741896646685,-500.0,0.00013698,2]
[356097826,1741896646695,-500.0,0.00013698,2]
[356097827,1741896646705,-500.0,0.00013698,2]
[356097828,1741896646714,-568.68,0.00013698,2]
[356097829,1741896646723,-738.24,0.00013698,2]
[356097830,1741896646733,-500.0,0.00013698,2]
[356097831,1741896646743,-500.0,0.00013698,2]
[356097832,1741896646753,-500.69,0.00013698,2]
[356097833,1741896646763,-500.0,0.00013698,2]
[356097834,1741896646772,-500.0,0.00013698,2]
[356097835,1741896646782,-500.0,0.00013698,2]
[356097836,1741896646792,-500.0,0.00013698,2]
[356097837,1741896646802,-924.91,0.00013698,2]
[356097838,1741896646811,-500.0,0.00013698,2]
[356097839,1741896646821,-500.0,0.00013698,2]
[356097840,1741896646831,-500.0,0.00013698,2]
[356097841,1741896646840,-1524.44,0.00013698,2]
[356097842,1741896646849,-500.0,0.00013698,2]
[356097843,1741896646859,-500.0,0.00013698,2]
[356097844,1741896646870,-500.0,0.00013698,2]
[356097845,1741896646880,-173.71809023,0.00013698,2]
[356097846,1741896646890,-500.0,0.00013698,2]
[356097847,1741896646900,-500.0,0.00013698,2]
[356097848,1741896646909,-760.29,0.00013698,2]
[356097849,1741896646919,-500.0,0.00013698,2]
[356097850,1741896646929,-869.75,0.00013698,2]
[356097851,1741896646939,-500.0,0.00013698,2]
[356097852,1741896646949,-798.1,0.00013698,2]
[356097853,1741896646958,-771.06,0.00013698,2]
[356097854,1741896646968,-500.0,0.00013698,2]
[356097855,1741896646978,-500.0,0.00013698,2]
[356097856,1741896646988,-565.98,0.00013698,2]
[356097857,1741896646998,-500.0,0.00013698,2]
[356097858,1741896647008,-500.0,0.00013698,2]
[356097859,1741896647018,-500.0,0.00013698,2]
[356097860,1741896647027,-500.0,0.00013698,2]
[356097861,1741896647037,-577.2,0.00013698,2]
[356097862,1741896647048,-500.0,0.00013698,2]
[356097863,1741896647059,-500.0,0.00013698,2]
[356097864,1741896647070,-167.80940724,0.00013698,2]
[356097865,1741896647079,-500.0,0.00013698,2]
[356097866,1741896647089,-500.0,0.00013698,2]
[356097867,1741896647099,-500.0,0.00013698,2]
[356097868,1741896647108,-500.0,0.00013698,2]
[356097869,1741896647118,-1312.81,0.00013698,2]
[356097870,1741896647128,-723.0,0.00013698,2]
[356097871,1741896647141,-612.69,0.00013698,2]
[356097872,1741896647151,-500.0,0.00013698,2]
[356097873,1741896647160,-500.0,0.00013698,2]
[356097874,1741896647170,-500.0,0.00013698,2]
[356097875,1741896647180,-500.0,0.00013698,2]
[356097876,1741896647406,-174.69709185,0.00013698,2]
[356097877,1741896647418,-1280.42,0.00013698,2]
[356097878,1741896647428,-500.0,0.00013698,2]
[356097879,1741896647439,-500.0,0.00013698,2]
[356097880,1741896647448,-500.0,0.00013698,2]
[356097881,1741896647459,-651.51,0.00013698,2]
[356097882,1741896647470,-966.99,0.00013698,2]
[356097883,1741896647480,-500.0,0.00013698,2]
[356097884,1741896647489,-500.0,0.00013698,2]
[356097885,1741896647500,-500.0,0.00013698,2]
[356097886,1741896647509,-500.0,0.00013698,2]
[356097887,1741896647519,-480.80359402,0.00013698,2]
[356097888,1741896647529,-507.8,0.00013698,2]
[356097889,1741896647538,-500.0,0.00013698,2]
[356097890,1741896647549,-500.0,0.00013698,2]
[356097891,1741896647559,-500.0,0.00013698,2]
[356097892,1741896647569,-500.0,0.00013698,2]
[356097893,1741896647578,-500.0,0.00013698,2]
[356097894,1741896647588,-500.0,0.00013698,2]
[356097895,1741896647598,-528.93080577,0.00013698,2]
[356097896,1741896647608,-500.0,0.00013698,2]
[356097897,1741896647618,-500.0,0.00013698,2]
[356097898,1741896647628,-500.0,0.00013698,2]
[356097899,1741896647638,-500.0,0.00013698,2]
[356097900,1741896647648,-500.0,0.00013698,2]
[356097901,1741896647659,-1235.13,0.00013698,2]
[356097902,1741896647669,-500.0,0.00013698,2]
[356097903,1741896647679,-500.0,0.00013698,2]
[356097904,1741896647690,-500.0,0.00013698,2]
[356097905,1741896647699,-500.0,0.00013698,2]
[356097906,1741896647709,-500.0,0.00013698,2]
[356097907,1741896647720,-1790.14,0.00013698,2]
[356097908,1741896647729,-500.0,0.00013698,2]
[356097909,1741896647739,-500.0,0.00013698,2]
[356097910,1741896647749,-500.0,0.00013698,2]
[356097911,1741896647761,-598.32,0.00013698,2]
[356097912,1741896647771,-500.0,0.00013698,2]
[356097913,1741896647780,-500.0,0.00013698,2]
[356097914,1741896647790,-692.65,0.00013698,2]
[356097915,1741896647800,-500.0,0.00013698,2]
[356097916,1741896647811,-500.0,0.00013698,2]
[356097917,1741896647820,-500.0,0.00013698,2]
[356097918,1741896647830,-500.0,0.00013698,2]
[356097919,1741896647840,-500.0,0.00013698,2]
[356097920,1741896647849,-500.0,0.00013698,2]
[356097921,1741896647860,-500.0,0.00013698,2]
[356097922,1741896647870,-500.0,0.00013698,2]
[356097923,1741896647880,-500.0,0.00013698,2]
[356097924,1741896647889,-500.0,0.00013698,2]
[356097925,1741896647899,-510.90680665,0.00013698,2]
[356097926,1741896647909,-500.0,0.00013698,2]
[356097927,1741896647919,-500.0,0.00013698,2]
[356097928,1741896647928,-500.0,0.00013698,2]
[356097929,1741896647939,-500.0,0.00013698,2]
[356097930,1741896647949,-697.79,0.00013698,2]
[356097931,1741896647959,-629.03,0.00013698,2]
[356097932,1741896647969,-548.71189508,0.00013698,2]
[356097933,1741896647979,-500.0,0.00013698,2]
[356097934,1741896647989,-500.0,0.00013698,2]
[356097935,1741896647998,-500.0,0.00013698,2]
[356097936,1741896648009,-500.0,0.00013698,2]
[356097937,1741896648019,-580.96,0.00013698,2]
[356097938,1741896648029,-500.0,0.00013698,2]
[356097939,1741896648038,-500.0,0.00013698,2]
[356097940,1741896648049,-500.0,0.00013698,2]
[356097941,1741896648060,-500.0,0.00013698,2]
[356097942,1741896648070,-586.6262127,0.00013698,2]
[356097943,1741896648079,-500.0,0.00013698,2]
[356097944,1741896648089,-500.0,0.00013698,2]
[356097945,1741896648099,-480.82499318,0.00013698,2]
[356097946,1741896648116,-19.17500682,0.00013698,2]
[356097947,1741896648127,-503.73842363,0.00013698,2]
[356097948,1741896648139,-133.81157637,0.00013698,2]
[356097949,1741896648150,-500.0,0.00013698,2]
[356097950,1741896648159,-166.18781363,0.00013698,2]
[356097951,1741896648171,-333.81218637,0.00013698,2]
[356097952,1741896648181,-102.20359934,0.00013698,2]
[356097971,1741897600124,-194.78089337,0.00011712,2]
[356097972,1741897600147,-33.04392712,0.00011712,2]
[356097973,1741897639646,-230.12223728,0.00011595,2]
[356098104,1741897833899,-500.0,0.00011711,2]
[356098105,1741897833910,-500.0,0.00011711,2]
[356098106,1741897833920,-543.08666015,0.00011711,2]
[356098107,1741897833930,-394.93001895,0.00011711,2]
[356098108,1741897833939,-300.0,0.00011711,2]
[356098109,1741897833949,-1253.99531524,0.00011713,2]
[356098110,1741897833962,-23646.00468476,0.00011713,2]
[356098111,1741897833971,-250.0,0.00012424,2]
[356098112,1741897833982,-8510.6887158,0.00012424,2]
[356098113,1741897833992,-2327.1982957,0.00012472,2]
[356098114,1741897834002,-997.88716285,0.00012521,2]
[356098115,1741897834011,-18183.93504217,0.00012523,2]
[356098116,1741897834239,-8246.4,0.00012523,2]
[356098117,1741897834362,-500.0,0.00011711,2]
[356098118,1741897834373,-4520.73433223,0.00012523,2]
[356098119,1741897834383,-325.97314597,0.00012592,2]
[356098120,1741897834393,-368.0296165,0.00012692,2]
[356098121,1741897834403,-420.0,0.0001286,2]
[356098122,1741897834412,-1427.12173394,0.000129,2]
[356098123,1741897834422,-325.97314597,0.00013095,2]
[356098124,1741897834431,-1427.12173391,0.00013132,2]
[356098125,1741897834441,-500.0,0.00013164,2]
[356098126,1741897834450,-540.0,0.00013364,2]
[356098127,1741897834460,-1914.0,0.00013364,2]
[356098128,1741897834471,-399.0,0.00013364,2]
[356098129,1741897834481,-261.66229907,0.00013397,2]
[356098130,1741897834491,-3261.8629097,0.000134,2]
[356098131,1741897834501,-192.438,0.00013497,2]
[356098132,1741897834511,-167.95003857,0.00013498,2]
[356098133,1741897834521,-52941.00046927,0.00013498,2]
[356098170,1741897838379,-500.0,0.00011711,2]
[356098172,1741897838389,-500.0,0.00011711,2]
[356098174,1741897838399,-500.0,0.00011711,2]
[356098175,1741897838408,-500.0,0.00011711,2]
[356098177,1741897838418,-500.0,0.00011711,2]
[356098179,1741897838427,-500.0,0.00011711,2]
[356098180,1741897838436,-500.0,0.00011711,2]
[356098182,1741897838447,-500.0,0.00011711,2]
[356098184,1741897838456,-500.0,0.00011711,2]
[356098186,1741897838467,-500.0,0.00011711,2]
[356098188,1741897838481,-500.0,0.00011711,2]
[356098189,1741897838491,-500.0,0.00011711,2]
[356098191,1741897838500,-500.0,0.00011711,2]
[356098194,1741897838511,-500.0,0.00011711,2]
[356098195,1741897838520,-252.05461485,0.00011711,2]
[356098196,1741897838529,-500.0,0.00011711,2]
[356098197,1741897838539,-500.0,0.00011711,2]
[356098198,1741897838550,-500.0,0.00011711,2]
[356098199,1741897838560,-500.0,0.00011711,2]
[356098200,1741897838569,-500.0,0.00011711,2]
[356098201,1741897838578,-500.0,0.00011711,2]
[356098202,1741897838588,-500.0,0.00011711,2]
[356098203,1741897838597,-500.0,0.00011711,2]
[356098204,1741897838608,-500.0,0.00011711,2]
[356098205,1741897838617,-500.0,0.00011711,2]
[356098206,1741897838627,-500.0,0.00011711,2]
[356098207,1741897838637,-500.0,0.00011711,2]
[356098208,1741897838646,-500.0,0.00011711,2]
[356098209,1741897838655,-500.0,0.00011711,2]
[356098210,1741897838665,-500.0,0.00011711,2]
[356098211,1741897838674,-500.0,0.00011711,2]
[356098212,1741897838684,-500.0,0.00011711,2]
[356098213,1741897838693,-500.0,0.00011711,2]
[356098214,1741897838703,-500.0,0.00011711,2]
[356098215,1741897838714,-500.0,0.00011711,2]
[356098216,1741897838723,-500.0,0.00011711,2]
[356098217,1741897838733,-2795.35870931,0.00013498,2]